fUSD/lending_fUSD_20240113
["ID","MTS","AMOUNT","RATE_DAILY","PERIOD"]
[311466989,1705152918778,173.95,0.00021851,2]
[311466990,1705152946473,159.25,0.00022059,2]
[311466991,1705152966842,694.66,0.00021826,2]
[311466992,1705152980297,155.03453001,0.00022004,2]
[311466993,1705152985166,155.03452995,0.00022085,2]
[311466994,1705152985618,1000.0,0.00022897,7]
[311466995,1705153025626,174.11,0.00021751,2]
[311466996,1705153126202,297.87,0.00019823,2]
[311466997,1705153126288,297.87,0.00022087,2]
[311466998,1705153128679,651.61,0.00021741,2]
[311466999,1705153198256,250.0,0.00021746,2]
[311467000,1705153300972,159.5,0.00021877,2]
[311467008,1705153374379,659.06,0.00022895,7]
[311467009,1705153380047,161.86,0.00021997,2]
[311467011,1705153401186,173.95,0.00021819,2]
[311467012,1705153427920,648.34,0.00021803,2]
[311467014,1705153521217,-3673.63724606,0.00022103,4]
[311467015,1705153521240,-763.12054319,0.00022104,2]
[311467016,1705153521262,-229.96,0.00022105,2]
[311467017,1705153588756,478.71,0.00021816,2]
[311467018,1705153594276,1056.69746593,0.00022896,7]
[311467019,1705153597907,268.08,0.00019901,2]
[311467020,1705153598097,268.08,0.00022165,2]
[311467021,1705153617199,3337.47,0.00022896,7]
[311467022,1705153661497,503.5462664,0.00022895,7]
[311467026,1705153748090,159.5,0.00021945,2]
[311467052,1705153831995,-229.96,0.0002222,2]
[311467053,1705153832005,-155.03452995,0.00022236,2]
[311467054,1705153832017,-5.8266067,0.0002231,2]
[311467055,1705153832028,-149.20792325,0.0002231,2]
[311467056,1705153832037,-493.30657155,0.00022335,4]
[311467057,1705153832049,-1550.3468,0.00022335,4]
[311467058,1705153832060,-258.75,0.00022335,4]
[311467059,1705153832072,-267.3,0.00022335,4]
[311467060,1705153832098,-1103.93387451,0.00022335,4]
[311467061,1705153832108,-2739.94,0.00022336,2]
[311467062,1705153832117,-229.96,0.00022336,2]
[311467063,1705153832126,-1053.68715592,0.00022336,2]
[311467064,1705153832135,-155.03452995,0.00022383,2]
[311467065,1705153832144,-530.14982776,0.0002244,2]
[311467066,1705153832156,-188.85017224,0.0002244,2]
[311467067,1705153832165,-229.96,0.00022452,2]
[311467068,1705153832174,-155.03452995,0.00022457,2]
[311467069,1705153832183,-8062.80681186,0.000225,2]
[311467070,1705153832221,-617.92920426,0.000225,2]
[311467071,1705153832232,-551.58556299,0.000225,2]
[311467072,1705153832244,-474.6688742,0.000225,2]
[311467073,1705153832256,-1454.97093426,0.000225,2]
[311467074,1705153832269,-376.329863,0.000225,2]
[311467075,1705153832281,-423.98137478,0.000225,2]
[311467076,1705153832292,-7148.01373639,0.000225,2]
[311467077,1705153832302,-210.0,0.00022505,2]
[311467078,1705153832311,-155.03452995,0.00022531,2]
[311467079,1705153832320,-500.0,0.00022539,2]
[311467080,1705153832330,-229.96,0.00022567,2]
[311467081,1705153832339,-293.92,0.000226,2]
[311467082,1705153832348,-155.03452995,0.00022604,2]
[311467084,1705153832357,-684.2,0.00022667,2]
[311467086,1705153832366,-155.03452995,0.00022678,2]
[311467087,1705153832375,-229.96,0.00022683,2]
[311467088,1705153832384,-150.0,0.00022712,2]
[311467089,1705153832393,-150.0,0.00022736,2]
[311467090,1705153832402,-150.0,0.0002274,2]
[311467091,1705153832411,-155.03452995,0.00022752,2]
[311467093,1705153832421,-150.0,0.00022762,2]
[311467095,1705153832430,-150.0,0.00022765,2]
[311467098,1705153832440,-648.34,0.00022782,2]
[311467099,1705153832449,-218.20359737,0.00022791,2]
[311467101,1705153832458,-273.18383119,0.00022795,2]
[311467103,1705153832469,-2677.93342954,0.00022796,2]
[311467104,1705153832480,-529.60007921,0.00022796,2]
[311467105,1705153832505,-257.69497186,0.00022796,2]
[311467106,1705153832517,-4607.51088024,0.00022796,2]
[311467107,1705153832528,-255.9113571,0.00022796,2]
[311467108,1705153832539,-529.8845438,0.00022796,2]
[311467109,1705153832551,-421.95341178,0.00022796,2]
[311467110,1705153832564,-271.48453953,0.00022796,2]
[311467111,1705153832576,-1012.87595704,0.00022796,2]
[311467112,1705153832601,-267.5,0.00022796,2]
[311467113,1705153832613,-709.57283364,0.00022796,2]
[311467114,1705153832625,-2159.46645124,0.00022796,2]
[311467115,1705153832638,-12133.37374502,0.00022796,2]
[311467116,1705153832648,-1850.25527833,0.00022796,2]
[311467117,1705153832658,-250.0,0.00022798,2]
[311467118,1705153832668,-5000.0,0.00022798,2]
[311467119,1705153832677,-229.96,0.00022799,2]
[311467120,1705153832686,-2088.85,0.000228,2]
[311467121,1705153832695,-172.28259044,0.00022803,2]
[311467122,1705153832704,-273.18383112,0.0002281,2]
[311467123,1705153832714,-150.0,0.00022818,2]
[311467124,1705153832723,-150.0,0.0002282,2]
[311467125,1705153832732,-293.29955994,0.00022823,2]
[311467126,1705153832741,-150.0,0.00022823,2]
[311467127,1705153832750,-273.18383112,0.00022825,2]
[311467128,1705153832759,-155.03452995,0.00022825,2]
[311467129,1705153832768,-150.0,0.00022838,2]
[311467130,1705153832777,-273.18383112,0.0002284,2]
[311467131,1705153832786,-273.18383112,0.00022855,2]
[311467132,1705153832795,-273.18383112,0.0002287,2]
[311467133,1705153832804,-159.25,0.00022889,2]
[311467134,1705153832814,-800.0,0.00022892,2]
[311467135,1705153832822,-161.85332967,0.00022894,2]
[311467136,1705153832831,-1060.96,0.00022894,2]
[311467137,1705153832840,-500.0,0.00022894,2]
[311467138,1705153832849,-520.22,0.00022894,2]
[311467139,1705153832858,-500.0,0.00022895,2]
[311467140,1705153832868,-500.0,0.00022895,2]
[311467141,1705153832877,-500.0,0.00022895,2]
[311467142,1705153832886,-500.0,0.00022895,2]
[311467143,1705153832895,-500.0,0.00022895,2]
[311467144,1705153832905,-500.0,0.00022895,2]
[311467145,1705153832913,-500.0,0.00022895,2]
[311467146,1705153832922,-500.0,0.00022895,2]
[311467147,1705153832931,-500.0,0.00022895,2]
[311467148,1705153832940,-500.0,0.00022895,2]
[311467149,1705153832949,-500.0,0.00022895,2]
[311467150,1705153832958,-500.0,0.00022895,2]
[311467151,1705153832968,-500.0,0.00022895,2]
[311467152,1705153832977,-656.99,0.00022895,2]
[311467153,1705153832986,-500.0,0.00022895,2]
[311467154,1705153832995,-287.48986354,0.00022895,2]
[311467155,1705153833004,-500.0,0.00022895,2]
[311467156,1705153833016,-500.0,0.00022895,2]
[311467157,1705153833025,-500.0,0.00022895,2]
[311467158,1705153833034,-500.0,0.00022895,2]
[311467159,1705153833043,-505.45160069,0.00022895,2]
[311467160,1705153833052,-500.0,0.00022895,2]
[311467161,1705153833061,-500.0,0.00022895,2]
[311467162,1705153833070,-500.0,0.00022895,2]
[311467163,1705153833079,-500.0,0.00022895,2]
[311467164,1705153833089,-500.0,0.00022895,2]
[311467165,1705153833100,-500.0,0.00022895,2]
[311467166,1705153833109,-804.78,0.00022895,2]
[311467167,1705153833118,-500.0,0.00022895,2]
[311467168,1705153833127,-500.0,0.00022895,2]
[311467169,1705153833137,-500.0,0.00022895,2]
[311467170,1705153833146,-500.0,0.00022895,2]
[311467171,1705153833155,-500.0,0.00022895,2]
[311467172,1705153833166,-500.0,0.00022895,2]
[311467173,1705153833175,-500.0,0.00022895,2]
[311467174,1705153833185,-500.0,0.00022895,2]
[311467175,1705153833194,-507.61,0.00022895,2]
[311467176,1705153833203,-500.0,0.00022895,2]
[311467177,1705153833212,-500.0,0.00022895,2]
[311467178,1705153833222,-500.0,0.00022895,2]
[311467179,1705153833231,-500.0,0.00022895,2]
[311467180,1705153833240,-500.0,0.00022895,2]
[311467181,1705153833250,-500.0,0.00022895,2]
[311467182,1705153833259,-500.0,0.00022895,2]
[311467183,1705153833268,-500.0,0.00022895,2]
[311467184,1705153833277,-500.0,0.00022895,2]
[311467185,1705153833286,-500.0,0.00022895,2]
[311467186,1705153833295,-500.0,0.00022895,2]
[311467187,1705153833304,-500.0,0.00022895,2]
[311467188,1705153833314,-500.0,0.00022895,2]
[311467189,1705153833323,-500.0,0.00022895,2]
[311467190,1705153833333,-500.0,0.00022895,2]
[311467191,1705153833342,-500.0,0.00022895,2]
[311467192,1705153833351,-500.0,0.00022895,2]
[311467193,1705153833360,-500.0,0.00022895,2]
[311467194,1705153833369,-500.0,0.00022895,2]
[311467195,1705153833378,-539.44,0.00022895,2]
[311467196,1705153833387,-500.0,0.00022895,2]
[311467197,1705153833396,-500.0,0.00022895,2]
[311467198,1705153833406,-500.0,0.00022895,2]
[311467199,1705153833415,-500.0,0.00022895,2]
[311467200,1705153833424,-402.38450143,0.00022895,2]
[311467201,1705153833433,-500.0,0.00022895,2]
[311467202,1705153833443,-500.0,0.00022895,2]
[311467203,1705153833452,-500.0,0.00022895,2]
[311467204,1705153833470,-281.36022299,0.00022895,2]
[311467205,1705153833484,-500.0,0.00022895,2]
[311467206,1705153833497,-500.0,0.00022895,2]
[311467207,1705153833509,-500.0,0.00022895,2]
[311467208,1705153833521,-502.35378838,0.00022895,2]
[311467209,1705153833534,-500.0,0.00022895,2]
[311467210,1705153833547,-500.0,0.00022895,2]
[311467211,1705153833560,-500.0,0.00022895,2]
[311467212,1705153833573,-500.0,0.00022895,2]
[311467213,1705153833586,-500.0,0.00022895,2]
[311467214,1705153833598,-500.0,0.00022895,2]
[311467215,1705153833610,-500.0,0.00022895,2]
[311467216,1705153833620,-500.0,0.00022895,2]
[311467217,1705153833633,-500.0,0.00022895,2]
[311467218,1705153833645,-500.0,0.00022895,2]
[311467219,1705153833657,-520.11483485,0.00022895,2]
[311467220,1705153833669,-528.45993714,0.00022895,2]
[311467221,1705153833681,-500.0,0.00022895,2]
[311467222,1705153833694,-500.0,0.00022895,2]
[311467223,1705153833705,-500.0,0.00022895,2]
[311467224,1705153833717,-500.0,0.00022895,2]
[311467225,1705153833731,-500.0,0.00022895,2]
[311467226,1705153833743,-500.0,0.00022895,2]
[311467227,1705153833755,-500.0,0.00022895,2]
[311467228,1705153833768,-600.60508767,0.00022895,2]
[311467229,1705153833780,-500.0,0.00022895,2]
[311467230,1705153833792,-500.0,0.00022895,2]
[311467231,1705153833806,-500.0,0.00022895,2]
[311467232,1705153833819,-504.45464172,0.00022895,2]
[311467233,1705153833832,-643.46918362,0.00022895,2]
[311467234,1705153833842,-500.0,0.00022895,2]
[311467235,1705153833855,-500.0,0.00022895,2]
[311467236,1705153833867,-500.0,0.00022895,2]
[311467237,1705153833878,-500.0,0.00022895,2]
[311467238,1705153833892,-500.0,0.00022895,2]
[311467239,1705153833904,-500.0,0.00022895,2]
[311467240,1705153833915,-500.0,0.00022895,2]
[311467241,1705153833926,-503.32295292,0.00022895,2]
[311467242,1705153833936,-500.0,0.00022895,2]
[311467243,1705153833948,-500.0,0.00022895,2]
[311467244,1705153833960,-500.0,0.00022895,2]
[311467245,1705153833973,-500.0,0.00022895,2]
[311467246,1705153833986,-500.0,0.00022895,2]
[311467247,1705153833997,-500.0,0.00022895,2]
[311467248,1705153834009,-500.0,0.00022895,2]
[311467249,1705153834023,-500.0,0.00022895,2]
[311467250,1705153834034,-673.84,0.00022895,2]
[311467251,1705153834051,-500.0,0.00022895,2]
[311467252,1705153834062,-500.0,0.00022895,2]
[311467253,1705153834073,-500.0,0.00022895,2]
[311467254,1705153834084,-500.0,0.00022895,2]
[311467255,1705153834096,-500.0,0.00022895,2]
[311467256,1705153834108,-500.0,0.00022895,2]
[311467257,1705153834119,-500.0,0.00022895,2]
[311467258,1705153834131,-500.0,0.00022895,2]
[311467259,1705153834142,-150.0,0.00022895,2]
[311467260,1705153834153,-500.0,0.00022895,2]
[311467261,1705153834164,-500.0,0.00022895,2]
[311467262,1705153834175,-500.74,0.00022895,2]
[311467263,1705153834187,-500.0,0.00022895,2]
[311467264,1705153834199,-500.0,0.00022895,2]
[311467265,1705153834210,-500.0,0.00022895,2]
[311467266,1705153834223,-500.0,0.00022895,2]
[311467267,1705153834235,-500.0,0.00022895,2]
[311467268,1705153834247,-500.0,0.00022895,2]
[311467269,1705153834259,-500.0,0.00022895,2]
[311467270,1705153834270,-500.0,0.00022895,2]
[311467271,1705153834281,-500.0,0.00022895,2]
[311467272,1705153834292,-500.0,0.00022895,2]
[311467273,1705153834303,-500.0,0.00022895,2]
[311467274,1705153834315,-500.0,0.00022895,2]
[311467275,1705153834326,-500.0,0.00022895,2]
[311467276,1705153834338,-500.0,0.00022895,2]
[311467277,1705153834349,-500.0,0.00022895,2]
[311467278,1705153834360,-500.0,0.00022895,2]
[311467279,1705153834371,-500.0,0.00022895,2]
[311467280,1705153834382,-500.0,0.00022895,2]
[311467281,1705153834393,-500.0,0.00022895,2]
[311467282,1705153834404,-500.0,0.00022895,2]
[311467283,1705153834416,-500.0,0.00022895,2]
[311467284,1705153834428,-500.0,0.00022895,2]
[311467285,1705153834439,-500.0,0.00022895,2]
[311467286,1705153834450,-500.0,0.00022895,2]
[311467287,1705153834462,-500.0,0.00022895,2]
[311467288,1705153834473,-500.0,0.00022895,2]
[311467289,1705153834484,-500.0,0.00022895,2]
[311467290,1705153834496,-500.0,0.00022895,2]
[311467291,1705153834507,-514.0663303,0.00022895,2]
[311467292,1705153834518,-500.0,0.00022895,2]
[311467293,1705153834530,-500.0,0.00022895,2]
[311467294,1705153834542,-732.12,0.00022895,2]
[311467295,1705153834553,-500.0,0.00022895,2]
[311467296,1705153834565,-500.0,0.00022895,2]
[311467297,1705153834577,-500.0,0.00022895,2]
[311467298,1705153834588,-500.0,0.00022895,2]
[311467299,1705153834600,-588.15,0.00022895,2]
[311467300,1705153834611,-500.0,0.00022895,2]
[311467301,1705153834622,-500.0,0.00022895,2]
[311467302,1705153834633,-692.0,0.00022895,2]
[311467303,1705153834643,-500.0,0.00022895,2]
[311467304,1705153834654,-500.0,0.00022895,2]
[311467305,1705153834666,-500.0,0.00022895,2]
[311467306,1705153834677,-500.0,0.00022895,2]
[311467307,1705153834688,-1172.87,0.00022895,2]
[311467308,1705153834700,-500.0,0.00022895,2]
[311467309,1705153834712,-500.0,0.00022895,2]
[311467310,1705153834723,-500.0,0.00022895,2]
[311467311,1705153834734,-903.68,0.00022895,2]
[311467312,1705153834746,-500.0,0.00022895,2]
[311467313,1705153834756,-500.0,0.00022895,2]
[311467314,1705153834768,-843.06,0.00022895,2]
[311467315,1705153834779,-500.0,0.00022895,2]
[311467316,1705153834791,-615.47,0.00022895,2]
[311467317,1705153834802,-500.0,0.00022895,2]
[311467318,1705153834814,-500.0,0.00022895,2]
[311467319,1705153834825,-1750.91,0.00022895,5]
[311467320,1705153834836,-500.0,0.00022895,2]
[311467321,1705153834847,-500.0,0.00022895,2]
[311467322,1705153834858,-500.0,0.00022895,2]
[311467323,1705153834870,-500.0,0.00022895,2]
[311467324,1705153834881,-3077.68,0.00022895,2]
[311467325,1705153834892,-500.0,0.00022895,2]
[311467326,1705153834904,-506.36634257,0.00022895,2]
[311467327,1705153834915,-510.57,0.00022895,2]
[311467328,1705153834927,-500.0,0.00022895,2]
[311467329,1705153834938,-500.0,0.00022895,2]
[311467330,1705153834949,-500.0,0.00022895,2]
[311467331,1705153834961,-500.0,0.00022895,2]
[311467332,1705153834973,-500.0,0.00022895,2]
[311467333,1705153834984,-500.0,0.00022895,2]
[311467334,1705153834995,-500.0,0.00022895,2]
[311467335,1705153835007,-1924.38,0.00022895,2]
[311467336,1705153835019,-1525.61,0.00022895,2]
[311467337,1705153835031,-500.0,0.00022895,2]
[311467338,1705153835042,-500.0,0.00022895,2]
[311467339,1705153835055,-532.57,0.00022895,2]
[311467340,1705153835067,-558.83423901,0.00022895,2]
[311467341,1705153835078,-4193.4,0.00022895,2]
[311467342,1705153835090,-500.0,0.00022895,2]
[311467343,1705153835101,-500.0,0.00022895,2]
[311467344,1705153835114,-500.0,0.00022895,2]
[311467345,1705153835126,-14371.45,0.00022895,2]
[311467346,1705153835138,-500.0,0.00022895,2]
[311467347,1705153835149,-500.0,0.00022895,2]
[311467348,1705153835161,-177.2776797,0.00022895,2]
[311467349,1705153835173,-500.0,0.00022895,2]
[311467350,1705153835185,-500.0,0.00022895,2]
[311467351,1705153835196,-500.0,0.00022895,2]
[311467352,1705153835209,-500.0,0.00022895,2]
[311467353,1705153835222,-763.84,0.00022895,2]
[311467354,1705153835234,-500.0,0.00022895,2]
[311467355,1705153835245,-5167.56,0.00022895,2]
[311467356,1705153835256,-790.99,0.00022895,2]
[311467357,1705153835268,-1491.18,0.00022895,2]
[311467358,1705153835279,-500.0,0.00022895,2]
[311467359,1705153835291,-500.0,0.00022895,2]
[311467360,1705153835302,-500.0,0.00022895,2]
[311467361,1705153835315,-500.0,0.00022895,2]
[311467362,1705153835327,-500.0,0.00022895,2]
[311467363,1705153835338,-500.0,0.00022895,2]
[311467364,1705153835350,-500.0,0.00022895,2]
[311467365,1705153835361,-500.0,0.00022895,2]
[311467366,1705153835372,-504.174785,0.00022895,2]
[311467367,1705153835383,-500.0,0.00022895,2]
[311467368,1705153835395,-500.0,0.00022895,2]
[311467369,1705153835407,-500.0,0.00022895,2]
[311467370,1705153835420,-500.0,0.00022895,2]
[311467371,1705153835431,-500.0,0.00022895,2]
[311467372,1705153835442,-502.22810114,0.00022895,2]
[311467373,1705153835454,-696.57,0.00022895,2]
[311467374,1705153835467,-288.14474407,0.00022895,2]
[311467375,1705153835478,-500.0,0.00022895,2]
[311467376,1705153835489,-500.0,0.00022895,2]
[311467377,1705153835501,-539.59881259,0.00022895,2]
[311467378,1705153835512,-1542.51,0.00022895,2]
[311467379,1705153835524,-500.0,0.00022895,2]
[311467380,1705153835535,-500.0,0.00022895,2]
[311467381,1705153835546,-500.0,0.00022895,2]
[311467382,1705153835558,-500.0,0.00022895,2]
[311467383,1705153835570,-1543.53,0.00022895,2]
[311467384,1705153835581,-500.0,0.00022895,2]
[311467385,1705153835592,-500.0,0.00022895,2]
[311467386,1705153835603,-500.0,0.00022895,2]
[311467387,1705153835614,-500.0,0.00022895,2]
[311467388,1705153835625,-584.72,0.00022895,2]
[311467389,1705153835636,-500.0,0.00022895,2]
[311467390,1705153835647,-500.0,0.00022895,2]
[311467391,1705153835658,-500.0,0.00022895,2]
[311467392,1705153835669,-500.0,0.00022895,2]
[311467393,1705153835681,-343.1914012,0.00022895,2]
[311467394,1705153835693,-500.0,0.00022895,2]
[311467395,1705153835704,-500.0,0.00022895,2]
[311467396,1705153835716,-500.0,0.00022895,2]
[311467397,1705153835727,-372.42349208,0.00022895,2]
[311467398,1705153835738,-753.16,0.00022895,2]
[311467399,1705153835749,-500.0,0.00022895,2]
[311467400,1705153835759,-581.4,0.00022895,2]
[311467401,1705153835770,-1033.06,0.00022895,2]
[311467402,1705153835781,-500.0,0.00022895,2]
[311467403,1705153835792,-882.37,0.00022895,2]
[311467404,1705153835803,-500.0,0.00022895,2]
[311467405,1705153835814,-508.98,0.00022895,2]
[311467406,1705153835825,-500.0,0.00022895,2]
[311467407,1705153835836,-527.05932827,0.00022895,2]
[311467408,1705153835847,-277.95212168,0.00022895,2]
[311467409,1705153837086,-222.04787832,0.00022895,2]
[311467410,1705153837097,-498.46001478,0.00022895,2]
[311467411,1705153837109,-1.53998522,0.00022895,2]
[311467412,1705153837119,-576.56579549,0.00022895,2]
[311467413,1705153837131,-15.67420451,0.00022895,2]
[311467414,1705153837141,-500.0,0.00022895,2]
[311467415,1705153837150,-500.0,0.00022895,2]
[311467416,1705153837159,-500.0,0.00022895,2]
[311467417,1705153837169,-545.76,0.00022895,2]
[311467418,1705153837178,-500.0,0.00022895,2]
[311467419,1705153837188,-1017.66,0.00022895,2]
[311467420,1705153837199,-488.36718301,0.00022895,2]
[311467421,1705153837210,-500.0,0.00022895,2]
[311467422,1705153837222,-500.0,0.00022895,2]
[311467423,1705153837232,-520.71,0.00022895,2]
[311467424,1705153837241,-500.0,0.00022895,2]
[311467425,1705153837250,-548.23134213,0.00022895,2]
[311467426,1705153837265,-520.53865787,0.00022895,2]
[311467427,1705153837274,-500.0,0.00022895,2]
[311467428,1705153837284,-3615.13,0.00022895,2]
[311467429,1705153837293,-500.0,0.00022895,2]
[311467430,1705153837302,-414.05914104,0.00022895,2]
[311467431,1705153837314,-85.94085896,0.00022895,2]
[311467432,1705153837324,-500.0,0.00022895,2]
[311467433,1705153837337,-204.96024322,0.00022895,2]
[311467434,1705153837354,-295.03975678,0.00022895,2]
[311467435,1705153837363,-132.54024322,0.00022895,2]
[311467436,1705153837375,-381.95,0.00022895,2]
[311467437,1705153837388,-700.16975678,0.00022895,2]
[311467438,1705153837398,-500.0,0.00022895,2]
[311467439,1705153837412,-1000.0,0.00022895,2]
[311467440,1705153837421,-2221.41594217,0.00022895,2]
[311467514,1705153840054,-6633.400015,0.00022895,2]
[311467517,1705153840074,-3214.60404283,0.00022895,2]
[311467519,1705153840083,-965.5,0.00022895,2]
[311467520,1705153840093,-500.0,0.00022895,2]
[311467522,1705153840102,-549.7,0.00022895,2]
[311467524,1705153840112,-500.0,0.00022895,2]
[311467526,1705153840121,-811.6,0.00022895,2]
[311467527,1705153840131,-500.0,0.00022895,2]
[311467528,1705153840140,-500.0,0.00022895,2]
[311467529,1705153840149,-816.75,0.00022895,2]
[311467530,1705153840158,-506.93127141,0.00022895,2]
[311467531,1705153840167,-500.0,0.00022895,2]
[311467532,1705153840176,-500.0,0.00022895,2]
[311467533,1705153840185,-500.0,0.00022895,2]
[311467534,1705153840194,-1382.12,0.00022895,2]
[311467535,1705153840202,-340.70852616,0.00022895,2]
[311467536,1705153840217,-331.36147384,0.00022895,2]
[311467537,1705153840226,-774.69,0.00022895,2]
[311467538,1705153840235,-500.0,0.00022895,2]
[311467539,1705153840244,-879.36,0.00022895,2]
[311467540,1705153840254,-500.0,0.00022895,2]
[311467541,1705153840263,-500.0,0.00022895,2]
[311467542,1705153840272,-500.0,0.00022895,2]
[311467543,1705153840281,-285.56594783,0.00022895,2]
[311467546,1705153840314,-214.43405217,0.00022895,2]
[311467548,1705153840323,-500.0,0.00022895,2]
[311467550,1705153840333,-500.0,0.00022895,2]
[311467552,1705153840342,-523.77,0.00022895,2]
[311467554,1705153840352,-500.0,0.00022895,2]
[311467557,1705153840361,-2627.84,0.00022895,2]
[311467559,1705153840371,-267.60575765,0.00022895,2]
[311467571,1705153840425,-283.34424235,0.00022895,2]
[311467573,1705153840434,-500.0,0.00022895,2]
[311467575,1705153840444,-500.0,0.00022895,2]
[311467577,1705153840453,-500.0,0.00022895,2]
[311467579,1705153840462,-500.0,0.00022895,2]
[311467581,1705153840473,-2445.8,0.00022895,2]
[311467583,1705153840482,-500.0,0.00022895,2]
[311467585,1705153840492,-565.63,0.00022895,2]
[311467587,1705153840501,-1118.61,0.00022895,2]
[311467589,1705153840511,-501.54,0.00022895,2]
[311467591,1705153840520,-676.62,0.00022895,2]
[311467593,1705153840529,-1405.04,0.00022895,2]
[311467595,1705153840539,-500.0,0.00022895,2]
[311467597,1705153840549,-500.0,0.00022895,2]
[311467599,1705153840559,-1620.48,0.00022895,2]
[311467601,1705153840568,-512.49768612,0.00022895,2]
[311467603,1705153840577,-500.0,0.00022895,2]
[311467605,1705153840586,-500.0,0.00022895,2]
[311467607,1705153840595,-891.24,0.00022895,2]
[311467609,1705153840605,-509.49401901,0.00022895,2]
[311467611,1705153840614,-1032.78,0.00022895,2]
[311467613,1705153840624,-500.0,0.00022895,2]
[311467615,1705153840633,-500.0,0.00022895,2]
[311467617,1705153840642,-500.0,0.00022895,2]
[311467619,1705153840652,-500.0,0.00022895,2]
[311467621,1705153840661,-500.0,0.00022895,2]
[311467623,1705153840670,-500.0,0.00022895,2]
[311467625,1705153840680,-754.11,0.00022895,2]
[311467627,1705153840690,-548.94,0.00022895,2]
[311467629,1705153840699,-500.0,0.00022895,2]
[311467631,1705153840709,-500.0,0.00022895,2]
[311467633,1705153840719,-500.0,0.00022895,2]
[311467635,1705153840729,-500.0,0.00022895,2]
[311467637,1705153840738,-500.0,0.00022895,2]
[311467639,1705153840748,-625.88,0.00022895,2]
[311467641,1705153840757,-500.0,0.00022895,2]
[311467643,1705153840766,-500.0,0.00022895,2]
[311467645,1705153840776,-1361.9,0.00022895,2]
[311467647,1705153840785,-753.27,0.00022895,2]
[311467649,1705153840794,-500.0,0.00022895,2]
[311467651,1705153840803,-721.43,0.00022895,2]
[311467653,1705153840812,-500.0,0.00022895,2]
[311467655,1705153840822,-500.0,0.00022895,2]
[311467657,1705153840831,-7423.03,0.00022895,2]
[311467659,1705153840841,-500.0,0.00022895,2]
[311467661,1705153840850,-500.0,0.00022895,2]
[311467663,1705153840860,-500.0,0.00022895,2]
[311467665,1705153840869,-500.0,0.00022895,2]
[311467667,1705153840879,-500.0,0.00022895,2]
[311467669,1705153840888,-500.0,0.00022895,2]
[311467671,1705153840898,-500.0,0.00022895,2]
[311467673,1705153840907,-500.0,0.00022895,2]
[311467675,1705153840918,-1139.22,0.00022895,2]
[311467677,1705153840927,-500.0,0.00022895,2]
[311467679,1705153840937,-500.0,0.00022895,2]
[311467681,1705153840946,-500.0,0.00022895,2]
[311467683,1705153840956,-500.0,0.00022895,2]
[311467685,1705153840966,-536.6,0.00022895,2]
[311467687,1705153840976,-1910.37,0.00022895,2]
[311467689,1705153840985,-500.0,0.00022895,2]
[311467691,1705153840994,-360.28025381,0.00022895,2]
[311467693,1705153841004,-961.93,0.00022895,2]